Cogmind - Beta 13 @@@ ROGUE MODE // 2024.06.13 @ 22:54:31 Player: wojo Result: Destroyed by as-47277 with Assembled Rifle Performance ------------- Evolutions (0) 0 Regions Visited (2) 400 Robots Destroyed (11) 55 Value Destroyed (289) 289 Prototype IDs (1) 20 Alien Tech Used (0) 0 Bonus (0) 0 TOTAL SCORE: 764 Bonus ------- None Cogmind --------- Core Integrity 0/250 Matter 300/300 Energy 160/160 System Corruption 3% Temperature Cool (0) Movement Hovering (150) Ox1 Location -10/Mines Parts ------- > --- POWER (1) -------- Light Nuclear Core > --- PROPULSION (2) --- Combat Airjet > --- UTILITY (2) ------ Medium Storage Unit > --- WEAPON (2) ------- Assault Rifle Light Cannon > --- INVENTORY (10) --- Improved Heat Sink Small Storage Unit Improved Terrain Scanner Light Cannon Light Cannon Mini Grenade Launcher Datajack Mining Laser Peak State ------------ > --- POWER ------------ Light Nuclear Core > --- PROPULSION ------- Combat Airjet > --- UTILITY ---------- Medium Storage Unit Experimental Sensor Array > --- WEAPON ----------- Assault Rifle Light Cannon > --- INVENTORY -------- Improved Heat Sink Small Storage Unit Improved Terrain Scanner Light Cannon Light Cannon Datajack Mining Laser [Rating: 21] Favorites ----------- Power Ion Engine Engine Ion Engine Power Core Light Nuclear Core Propulsion Light Treads Treads Light Treads Leg Aluminum Leg Hover Unit Combat Airjet Utility Medium Storage Unit Device Improved Terrain Scanner Storage Medium Storage Unit Protection Utility Shielding Weapon Assault Rifle Ballistic Gun Assault Rifle Ballistic Cannon Light Cannon Build | -11 -10 -10 ------- Run | Yrd Mat Min Slots Evolved . | . . . Power . | . . . Propulsion . | . . . Utility . | . . . Weapon . | . . . Parts Attached 16 | 7 5 4 Power 3 | 1 1 1 Engine 2 | 1 1 . Core 1 | . . 1 Reactor . | . . . Propulsion 4 | 2 1 1 Treads 2 | 2 . . Leg 1 | . 1 . Wheel . | . . . Hover 1 | . . 1 Flight . | . . . Utility 5 | 2 2 1 Device 2 | 1 . 1 Storage 2 | 1 1 . Processor . | . . . Hackware . | . . . Protection 1 | . 1 . Artifact . | . . . Weapon 4 | 2 1 1 Energy Gun . | . . . Energy Cannon . | . . . Ballistic Gun 3 | 2 1 . Ballistic Cannon 1 | . . 1 Launcher . | . . . Special Weapon . | . . . Impact Weapon . | . . . Slashing Weapon . | . . . Piercing Weapon . | . . . Special Melee Weapon . | . . . Unidentified Prototypes 1 | . . 1 Parts Lost 8 | . 4 4 Power 2 | . 1 1 Propulsion 3 | . 2 1 Utility 1 | . . 1 Weapon 2 | . 1 1 Highest Loss Streak 3 | . 3 3 To Critical Strikes . | . . . Average Slot Usage (%) 82 | . 87 68 Engine 11 | . 13 7 Core 1 | . . 3 Treads 5 | . 7 . Leg 9 | . 9 8 Hover 1 | . . 3 Device 4 | . 5 . Storage 14 | . 14 14 Protection 7 | . 8 4 Ballistic Gun 26 | . 28 21 Ballistic Cannon 1 | . . 5 Naked Turns . | . . . Heaviest Build 20 | 15 20 20 Greatest Support 40 | 40 40 12 Greatest Overweight (x) 4 | . 4 4 Average Overweight (x) . | . . 1 Largest Inventory Capacity 10 | 8 10 10 Average Capacity 8 | 6 9 10 Most Carried 10 | 2 9 10 Average Carried 5 | . 5 8 Final Capacity 10 | 8 10 10 Final Carried 9 | 2 9 8 Class Distribution -------------------- 100% | Mutant Dominant Class ---------------- Mutant | -10/Materials Mutant | -10/Mines Resources | -11 -10 -10 ----------- Run | Yrd Mat Min Matter Collected 647 | 297 229 121 Remotely . | . . . Salvage Created 416 | 129 211 76 Parts 18 | 5 11 2 Haulers Intercepted . | . . . Recyclers Shooed 2 | . 2 . Parts Field Recycled . | . . . Retrieved Matter . | . . . Parts Self-Destructed . | . . . Prevented . | . . . Kills | -11 -10 -10 ------- Run | Yrd Mat Min Combat Hostiles Destroyed 11 | . 6 5 Guns 11 | . 6 5 Classes Destroyed 7 | 3 2 2 Worker 1 | 1 . . Tunneler 1 | 1 . . Recycler 1 | 1 . . Swarmer 2 | . 2 . Grunt 4 | . 4 . Demolisher 2 | . . 2 Assembled 3 | . . 3 Best Kill Streak 3 | 2 2 3 Combat Bots Only 3 | . 2 3 Max Kills in Single Turn 1 | 1 1 1 Gunslinging . | . . . Exploded . | . . . Melee . | . . . Uniques/NPCs Destroyed . | . . . Combat | -11 -10 -10 -------- Run | Yrd Mat Min Hostile Shots Fired 106 | . 74 32 Missed 27 | . 18 9 Damage Taken 1300 | . 665 635 Core 252 | . 89 163 Absorbed by Shields . | . . . Redirected to Shielding 3 | . 3 . Core Remaining (%) 100 | 100 . . Volleys Fired 57 | 7 34 16 Largest 2 | 2 2 2 Hottest 55 | 40 40 55 Shots Fired 108 | 14 67 27 Gun 98 | 14 67 17 Cannon 10 | . . 10 Launcher . | . . . Special . | . . . Kinetic 108 | 14 67 27 Thermal . | . . . Explosive . | . . . Electromagnetic . | . . . Robot Hit Streak 7 | 4 7 3 Robot Miss Streak 4 | 2 3 4 Penetration Max . | . . . Secondary Targets 2 | . 2 . Max Gunslinging Chain 1 | . 1 . Shots Hit Robots 54 | 8 35 11 Core Hits 27 | 4 14 9 Critical Kills . | . . . Critical Parts Destroyed 2 | 1 1 . Critical Strikes 2 | 1 1 . Destroy 2 | 1 1 . Melee Attacks . | . . . Impact . | . . . Slashing . | . . . Piercing . | . . . Sneak Attacks . | . . . Combat Hostiles . | . . . Follow-up Attacks . | . . . Damage Inflicted 885 | 98 588 199 Guns 770 | 98 578 94 Cannons 103 | . . 103 Explosions . | . . . Melee . | . . . Ramming 12 | . 10 2 Kinetic 873 | 98 578 197 Thermal . | . . . Explosive . | . . . Electromagnetic . | . . . Impact . | . . . Slashing . | . . . Piercing . | . . . Highest Corruption 3 | . . 3 Average Corruption 3 | . . 3 Corruption Purged . | . . . Corruption Blocked . | . . . Effects 1 | . . 1 Energy Discharges 1 | . . 1 Overload Shots . | . . . Overflow Damage . | . . . Projectiles . | . . . Explosions . | . . . Melee . | . . . Knockbacks 3 | . . 3 Impact . | . . . Kinetic 3 | . . 3 Secondary . | . . . Self-Inflicted Damage . | . . . Shots . | . . . Rammed . | . . . Targets Rammed 2 | . 1 1 Kicked 2 | . 1 1 Crushed . | . . . Highest Temperature 40 | . 40 . Average Temperature 9 | . 9 . Received Heat Transfer 354 | . 354 . Siege Activations . | . . . Robots Corrupted . | . . . Combat Hostiles . | . . . Parts Fried . | . . . Impact Corruptions . | . . . Robots Melted . | . . . Combat Hostiles . | . . . Parts Melted . | . . . Heat Transferred . | . . . Parts Sabotaged . | . . . Parts Stolen . | . . . Parts Stripped . | . . . Power Chain Reactions . | . . . Alert | -11 -10 -10 ------- Run | Yrd Mat Min Peak Influence 114 | 15 114 50 Initial 23 | . 9 23 Average 37 | 4 47 29 Maximum Alert Level . | . . . Low Security (%) 100 | 100 100 100 Level 1 . | . . . Level 2 . | . . . Level 3 . | . . . Level 4 . | . . . Level 5 . | . . . High Security . | . . . Max Security . | . . . Squads Dispatched 2 | . 2 . Investigation 2 | . 2 . Extermination . | . . . Reinforcement . | . . . Assault . | . . . Garrison . | . . . Intercept . | . . . Searches Triggered . | . . . Construction Impeded . | . . . Haulers Reinforced . | . . . Active Scanning Responses . | . . . Cargo Convoy Interrupts . | . . . Stealth | -11 -10 -10 --------- Run | Yrd Mat Min Distress Signals . | . . . Communications Jammed . | . . . Distress Signals . | . . . Times Spotted 34 | . 17 17 Peak Tracking Total 12 | . 5 12 Tactical Retreats . | . . . Traps | -11 -10 -10 ------- Run | Yrd Mat Min Traps Triggered 1 | . 1 . Indirectly . | . . . Trap Hack Attempts . | . . . Triggered . | . . . Disarmed . | . . . Reprogrammed . | . . . Reused . | . . . Traps Extracted . | . . . Installed . | . . . Triggered . | . . . Machines | -11 -10 -10 ---------- Run | Yrd Mat Min Machines Disabled . | . . . Max in Single Turn . | . . . Machines Repaired . | . . . Machines Dismantled . | . . . Machines Sabotaged . | . . . Overloaded Fab Kills . | . . . Hacking | -11 -10 -10 --------- Run | Yrd Mat Min Machines Accessed 6 | . 6 . Terminals 4 | . 4 . Fabricators . | . . . Repair Stations . | . . . Recycling Units 2 | . 2 . Scanalyzers . | . . . Garrison Access . | . . . Total Hacks 9 | . 9 . Successful 6 | . 6 . Failed 3 | . 3 . Catastrophic . | . . . Database Lockouts . | . . . Manual . | . . . Terminals 5 | . 5 . Fabricators . | . . . Repair Stations . | . . . Recycling Units 4 | . 4 . Scanalyzers . | . . . Garrison Access . | . . . Terminal Hacks 3 | . 3 . Terminal Index 1 | . 1 . Locate Traps 1 | . 1 . Hauler Manifests 1 | . 1 . Fabricator Hacks . | . . . Repair Station Hacks . | . . . Recycling Unit Hacks 3 | . 3 . Report Inventory 3 | . 3 . Scanalyzer . | . . . Garrison Access Hacks . | . . . Unauthorized Hacks . | . . . Terminals . | . . . Fabricators . | . . . Repair Stations . | . . . Recycling Units . | . . . Scanalyzers . | . . . Garrison Access . | . . . Data Cores Recovered . | . . . Used . | . . . Hacking Detections 2 | . 2 . Full Trace Events 1 | . 1 . Feedback Events . | . . . Feedback Blocked . | . . . Robot Schematics Acquired . | . . . Robots Built . | . . . Authchips . | . . . Time . | . . . Total Robot Build Rating . | . . . Part Schematics Acquired . | . . . Parts Built . | . . . Authchips . | . . . Time . | . . . Total Part Build Rating . | . . . Parts Repaired . | . . . Time . | . . . Parts Recycled . | . . . Recycled Matter . | . . . Retrieved Matter . | . . . Retrieved Components . | . . . Parts Scanalyzed . | . . . Part Schematics Acquired . | . . . Parts Damaged . | . . . Bothacking | -11 -10 -10 ------------ Run | Yrd Mat Min Used RIF Installer . | . . . Robots Hacked . | . . . Non-combat . | . . . Combat . | . . . Robot Hacks Applied . | . . . Relay Couplers Released . | . . . Fabnet Peak Effective % . | . . . Robots Rewired . | . . . Allies Hacked . | . . . Hacks Repelled . | . . . Allies | -11 -10 -10 -------- Run | Yrd Mat Min Total Allies . | . . . Largest Group . | . . . Highest-Rated Group . | . . . Highest-Rated Ally . | . . . Total Orders . | . . . Ally Attacks . | . . . Total Damage . | . . . Kills . | . . . Allies Corrupted . | . . . Allies Melted . | . . . Intel | -11 -10 -10 ------- Run | Yrd Mat Min Robot Analysis Total . | . . . Derelict Logs Recovered . | . . . Drone Launches . | . . . Drone Recoveries . | . . . Exploration | -11 -10 -10 ------------- Run | Yrd Mat Min Turns Passed 1214 | 162 752 300 Spaces Moved 560 | 83 343 134 Core 23 | 3 10 10 Treads 161 | 80 81 . Legs 337 | . 252 85 Wheels . | . . . Hover 39 | . . 39 Flight . | . . . Fastest Speed 50 | 50 160 150 Average Speed 179 | 156 184 182 Slowest Speed 250 | 160 250 250 Overloaded Moves . | . . . Propulsion Burnouts . | . . . Robots Hopped . | . . . Cave-ins Triggered . | . . . Exploration Rate (%) 36 | 5 74 30 Regions Visited 2 Branch Regions 1 Pre-discovered Areas . | . . . Known Exits Taken . | . . . Unknown Exits Taken 2 | 1 1 . Scrap Searched . | . . . Spaces Dug . | . . . Terrain Destroyed . | . . . Melee . | . . . Projectile . | . . . AOE . | . . . Terrain Rammed . | . . . Walls Destroyed . | . . . Machines Disabled . | . . . Actions | -11 -10 -10 --------- Run | Yrd Mat Min Total 653 | 99 393 161 Wait 6 | . 3 3 Move 558 | 82 342 134 Hop . | . . . Pick Up 12 | 3 7 2 Fast Attach 9 | 6 2 1 Attach 6 | 1 2 3 Detach 1 | . 1 . Swap 1 | . 1 . Drop 1 | . . 1 Fire 57 | 7 34 16 Melee . | . . . Ram . | . . . Kick 2 | . 1 1 Crush . | . . . Escape Stasis . | . . . Rewire . | . . . Trap . | . . . Miscellaneous . | . . . Route ------- -11/Scrapyard -10/Materials (discovered 3 exits: [*Mat] / [*Min x2]) -10/Mines History --------- Turn | Location | Event 95 | -11/Scrapyard | Discovered new exit (range 15) 163 | -11/Scrapyard | Entered Materials 316 | -10/Materials | Build established: Mutant 380 | -10/Materials | Discovered new exit (range 7) 404 | -10/Materials | Lost 3 parts (1p2n) 589 | -10/Materials | Discovered new exit (range 16) 765 | -10/Materials | Discovered new exit (range 12) 915 | -10/Materials | Entered Mines 916 | -10/Mines | Met a Derelict bent on vengeance 1012 | -10/Mines | Found a damaged Exp. Sensor Array with a note attached 1016 | -10/Mines | Found Prototype Device 1022 | -10/Mines | Assembled infested the area 1067 | -10/Mines | Core integrity fell below 50% 1098 | -10/Mines | Core integrity fell below 20% 1123 | -10/Mines | Lost 3 parts (1p1n1w) 1137 | -10/Mines | Identified Exp. Sensor Array 1215 | -10/Mines | Destroyed by as-47277 with Assembled Rifle Last Messages --------------- 01170_ K-01 Serf collects debris. 01171_ The unstable cave ceiling collapses. 01172_ U-05 Engineer builds a Wall. 01173_ R-06 Scavenger collects Terrain Scanner. 01173_ K-01 Serf collects debris. 01176_ U-05 Engineer lays Concrete. 01177_ K-01 Serf collects debris. 01178_ U-05 Engineer builds a Wall. 01178_ R-06 Scavenger collects Wheel. 01179_ K-01 Serf collects debris. 01182_ U-05 Engineer lays Concrete. 01187_ Acquired 15 matter. 01189_ U-05 Engineer lays Concrete. 01190_ Acquired 3 matter. 01191_ The unstable cave ceiling collapses. 01191_ Acquired 9 matter. 01193_ U-05 Engineer lays Concrete. 01194_ R-06 Scavenger collects Lgt. Ion Engine. 01199_ R-06 Scavenger collects Wheel. 01200_ Acquired 3 matter. Map ----- +----------------------------------------------------+ | ???????????????????????????????????????????? | | ???????????????????????????????????????????? | | ???????????????????????????????????????????? | | ???????????????????????????????????????????? | | ???????????????????????????????????????????? | | ???????????????????????????????????????????? | | ???????????????????????????????????????????? | | ???????????????????????????????????????????? | | ???????????????????????????????????????????? | | ???????????????????????????????????????????? | | ???????????????????????????????????????????? | | ???????????????????????????????????????????? | | ???????????????????????????????????????????? | | ???????????????????????????????????????????? | | ???????????????????????????????????????????? | | ???????????????????????????????????????????? | | ??# ??????????????????????????????????????? | | ?# ####???????????????????????????????? | | ?# ########??????????????????????? | | ?# % #??????????????????????? | | ????????## =%*%a #??????????????????????? | | ?????????## ### ##?????????????????????? | | ??????????## ???# #?????????????????????? | | ???????????#????# ####??????????????????? | | ????????????????# # ##???###???????????? | | ????????????????# @# #### ##??????????? | | ????????????????# ## #??????????? | | ????????????????# #??????????? | | ????????????????## #???????????? | | ????????????????# # ##???????????? | | ????????????????# ## r ##????###????? | | ???????????????## % ##??## ###### | | ???????????????# ## % % # #??# # | | ???????????????# ## ##??# | | ???????????????## #### | | ???????????????# % | | ???????????????# | | ???????????????# # | | ???????????????### ### ###### # | | ????????????????### #######????## ##??? | | ????????????????# # ###????????# ##???? | | ????????????????# # # ##?????### #????? | | ????????????????# # # #????## ##????? | | ????????????????# # #???## #?????? | | ????????????????# # ## #??## #?????? | | ????????????????# # #??# #?????? | | ????????????????## ## #??# ##?????? | | ????????????????## ##?## ###??????? | | ?????????????????## # ##??# ##????????? | | ??????????????????### ##???# ##????????? | +----------------------------------------------------+ Best States ------------- Heat Dissipation 25 Energy Generation 14 Energy Capacity 250 Matter Stores 300 Matter Capacity 300 Sight Range 16 Terrain Scan Range 16 Terrain Scan Density 10 Utility Shielding 33 Evasion (%) 40 Recoil Reduction 2 Item Schematics ----------------- None Robot Schematics ------------------ None Fabricated ------------ Nothing Alien Tech Used ----------------- None Achievements -------------- None Challenges ------------ None Game ------ Seed DeepBiomechanicalSink Manual? 0 Play Time 00:12:07 Cumulative 31.2 hours Start 2024.06.13 @ 22:44:58 End 2024.06.13 @ 22:54:31 Sessions 1 Manual Loads 0 Difficulty Rogue Special Mode None Game No. 52 Rogue 52 Adventurer 0 Explorer 0 Win Type - Total 0 Types 0/0/0/0/0/0/0/0/0 Lore% 22 Gallery% 28 Achievement% 21 Wizard Run 0 Options --------- Layout 1 ASCII 0 Keyboard 0 Movement Arrows Keybinds 0 Fullscreen 1 Font 16/SmallcapsGlow Map View 50x40 Zoom Use 0% Tactical HUD 1 Map Filters NONE Filters NONE Steam SD RUN: fa9ce76b-c550-45a6-8094-60231877a48f